fUSD/lending_fUSD_20250826
["ID","MTS","AMOUNT","RATE_DAILY","PERIOD"]
[381376173,1756166756770,-394.0,0.00013699,2]
[381376174,1756166759256,-106.0,0.00013699,2]
[381376189,1756166962223,1801.0,0.00028,120]
[381376197,1756167032306,-215.34008203,0.00015765,2]
[381376198,1756167032316,-920.6490438,0.00015789,2]
[381376199,1756167032328,-279.3509562,0.00015789,2]
[381376202,1756167032339,-250.0,0.0001579,2]
[381376204,1756167032349,-285.0,0.0001579,2]
[381376205,1756167032359,-2500.0,0.0001579,2]
[381376207,1756167032368,-81.68767556,0.00015828,2]
[381376210,1756167032380,-70.31232444,0.00015828,2]
[381376212,1756167032390,-488.0,0.0001708,2]
[381376213,1756167032399,-262.18251364,0.000173,2]
[381376216,1756167032411,-1737.81748636,0.000173,2]
[381376218,1756167032423,-1000.0,0.00017336,2]
[381376219,1756167032433,-250.0,0.00017342,2]
[381376221,1756167032442,-139.64218805,0.00017342,2]
[381376229,1756167032618,-145.35781195,0.00017342,2]
[381376231,1756167032629,-465.09032989,0.00017342,2]
[381376232,1756167032641,-440.68024,0.00017342,2]
[381376237,1756167032763,-1594.22943011,0.00017342,2]
[381376238,1756167032773,-1680.0,0.00017354,2]
[381376239,1756167032782,-152.0,0.00017369,2]
[381376240,1756167032792,-654.0,0.00017502,2]
[381376241,1756167032801,-1420.0,0.00017502,2]
[381376242,1756167032811,-785.0,0.00017639,2]
[381376243,1756167032820,-785.0,0.00017672,2]
[381376244,1756167032830,-329.11072785,0.00017692,2]
[381376245,1756167032840,-451.0,0.00017702,2]
[381376246,1756167032850,-274.0,0.00017729,2]
[381376247,1756167032859,-150.0,0.00017729,2]
[381376248,1756167032869,-844.49479001,0.00017748,2]
[381376249,1756167032879,-160.0,0.00017748,2]
[381376250,1756167032890,-785.0,0.00017755,2]
[381376251,1756167032900,-167.62,0.00017771,2]
[381376252,1756167032909,-785.0,0.00017903,2]
[381376253,1756167032921,-488.0,0.0001791,2]
[381376254,1756167032931,-160.0,0.00017961,7]
[381376255,1756167032940,-500.0,0.00017998,2]
[381376256,1756167032950,-528.67428603,0.00017998,2]
[381376257,1756167032960,-500.0,0.00017998,2]
[381376258,1756167032969,-1000.0,0.00017999,2]
[381376259,1756167032980,-300.0,0.00017999,2]
[381376260,1756167032991,-75505.19204007,0.00018,3]
[381376261,1756167033003,-212.1464853,0.00018,3]
[381376262,1756167033012,-200.0,0.00018,2]
[381376263,1756167033022,-267.46074303,0.0001801,2]
[381376264,1756167033031,-168.0,0.00018074,2]
[381376265,1756167033040,-173.76,0.00018082,2]
[381376266,1756167033050,-168.0,0.00018153,2]
[381376267,1756167033059,-150.0,0.00018164,2]
[381376268,1756167033070,-539.68,0.00018164,2]
[381376269,1756167033079,-173.7,0.00018164,2]
[381376270,1756167033089,-718.0,0.00018196,2]
[381376271,1756167033099,-20902.65925759,0.00018196,2]
[381376278,1756167037649,-197.34074241,0.00018196,2]
[381376279,1756167037663,-6145.0,0.00018196,2]
[381376280,1756167037681,-3134.53345911,0.00018196,2]
[381376281,1756167037772,-1019.46654089,0.00018196,2]
[381376282,1756167037791,-300.44,0.00018208,2]
[381376283,1756167037805,-974.0,0.00018209,2]
[381376284,1756167037819,-539.68,0.00018278,2]
[381376285,1756167037832,-687.47689981,0.000183,2]
[381376286,1756167037845,-1391.58935,0.000183,2]
[381376287,1756167037859,-524.25000002,0.000183,2]
[381376288,1756167037914,-3759.11030126,0.000183,2]
[381376289,1756167037932,-168.0,0.0001835,2]
[381376290,1756167037946,-151.0,0.00018379,2]
[381376291,1756167037962,-695.39793187,0.00018379,2]
[381376292,1756167037975,-500.0,0.00018379,2]
[381376293,1756167037996,-514.84312809,0.00018379,2]
[381376295,1756167038021,-160.0,0.00018379,2]
[381376296,1756167038056,-200.0,0.00018379,2]
[381376297,1756167038068,-500.0,0.00018379,2]
[381376298,1756167038081,-1000.0,0.00018379,2]
[381376299,1756167038094,-1000.0,0.00018379,2]
[381376300,1756167038106,-1000.0,0.00018379,2]
[381376301,1756167038119,-1000.0,0.00018379,2]
[381376303,1756167038133,-1000.0,0.00018379,2]
[381376305,1756167038146,-1000.0,0.00018379,2]
[381376307,1756167038159,-1000.0,0.00018379,2]
[381376309,1756167038176,-1000.0,0.00018379,2]
[381376312,1756167038189,-1000.0,0.00018379,2]
[381376314,1756167038201,-1000.0,0.00018379,2]
[381376316,1756167038213,-1000.0,0.00018379,2]
[381376319,1756167038225,-1000.0,0.00018379,2]
[381376321,1756167038237,-500.0,0.00018379,2]
[381376323,1756167038250,-500.0,0.00018379,2]
[381376326,1756167038263,-500.0,0.00018379,2]
[381376328,1756167038275,-322.6107,0.00018379,2]
[381376330,1756167038287,-500.0,0.00018379,2]
[381376333,1756167038300,-200.0,0.00018379,2]
[381376335,1756167038312,-500.0,0.00018379,2]
[381376337,1756167038325,-500.0,0.00018379,2]
[381376340,1756167038340,-500.0,0.00018379,2]
[381376342,1756167038353,-500.0,0.00018379,2]
[381376343,1756167038365,-500.0,0.00018379,2]
[381376344,1756167038377,-500.0,0.00018379,2]
[381376345,1756167038390,-433.09959716,0.00018379,2]
[381376346,1756167038403,-6362.42655107,0.00018386,2]
[381376347,1756167038416,-157.43967666,0.00018389,2]
[381376348,1756167038434,-342.56032334,0.00018389,2]
[381376349,1756167038446,-171.22982514,0.00018389,2]
[381376350,1756167038458,-118.3185065,0.00018389,2]
[381376352,1756167041958,-458.69889469,0.00018,3]
[381376353,1756167041969,-71.53814903,0.00018389,2]
[381376354,1756167041979,-3026.43104629,0.0001839,2]
[381376355,1756167041990,-2819.8,0.0001839,2]
[381376356,1756167042001,-281.4,0.0001839,2]
[381376357,1756167042215,-56641.2108517,0.0001839,2]
[381376358,1756167042226,-300.0,0.000184,6]
[381376359,1756167042236,-1511.39915125,0.00018422,2]
[381376360,1756167042247,-168.0,0.00018425,2]
[381376361,1756167042257,-6362.42655107,0.00018473,2]
[381376362,1756167042266,-600.0,0.000185,6]
[381376363,1756167042275,-168.0,0.0001852,2]
[381376364,1756167042286,-974.0,0.0001852,2]
[381376365,1756167042296,-150.0,0.00018546,2]
[381376366,1756167042306,-185.88528434,0.00018546,2]
[381376367,1756167042315,-150.0,0.00018546,2]
[381376368,1756167042324,-150.0,0.00018546,2]
[381376369,1756167042333,-150.0,0.00018546,2]
[381376370,1756167042343,-200.0,0.00018546,2]
[381376371,1756167042353,-719.0,0.00018546,2]
[381376372,1756167042363,-500.0,0.00018546,2]
[381376373,1756167042373,-150.0,0.00018557,2]
[381376374,1756167042383,-1400.0,0.00018557,2]
[381376375,1756167042393,-500.0,0.00018557,2]
[381376376,1756167042403,-1083.0,0.00018557,2]
[381376377,1756167042412,-150.0,0.00018557,2]
[381376378,1756167042422,-150.0,0.00018557,2]
[381376379,1756167042431,-150.0,0.00018557,2]
[381376380,1756167042440,-150.0,0.00018557,2]
[381376381,1756167042449,-1256.0,0.00018557,2]
[381376382,1756167042459,-925.0,0.00018557,2]
[381376383,1756167042470,-3374.0,0.00018557,2]
[381376384,1756167042481,-2031.0,0.00018557,2]
[381376385,1756167042491,-1657.0,0.00018557,2]
[381376386,1756167042501,-1298.0,0.00018557,2]
[381376387,1756167042511,-599.0,0.00018557,2]
[381376388,1756167042521,-566.0,0.00018557,2]
[381376389,1756167042531,-6362.42655107,0.00018559,2]
[381376390,1756167042542,-881.04435215,0.00018596,2]
[381376392,1756167042552,-150.0,0.000186,6]
[381376393,1756167042563,-500.0,0.000186,6]
[381376394,1756167042572,-500.0,0.000186,6]
[381376395,1756167042583,-262.57883991,0.000186,6]
[381376396,1756167042595,-183.7665289,0.000186,6]
[381376397,1756167042604,-500.0,0.000186,6]
[381376398,1756167042615,-500.0,0.000186,6]
[381376399,1756167042625,-900.0,0.000186,6]
[381376400,1756167042637,-6362.42655107,0.00018646,2]
[381376401,1756167042646,-1071.05,0.0001866,2]
[381376402,1756167042655,-6234.29166,0.0001867,2]
[381376403,1756167042666,-2500.0,0.00018688,2]
[381376404,1756167042677,-1200.0,0.000187,6]
[381376405,1756167042687,-11387.9,0.000187,2]
[381376406,1756167042696,-6362.42655107,0.00018732,2]
[381376407,1756167042706,-2398.0695,0.0001874,2]
[381376408,1756167042716,-488.0,0.0001875,2]
[381376409,1756167042726,-626.56506945,0.0001876,2]
[381376410,1756167042736,-626.56506946,0.0001876,2]
[381376411,1756167042746,-24981.7842,0.0001876,2]
[381376412,1756167042755,-54278.9051,0.0001876,2]
[381376413,1756167042765,-1000.0,0.0001876,2]
[381376414,1756167042776,-5383.99777009,0.00018761,2]
[381376415,1756167042788,-219.34454247,0.00018778,2]
[381376417,1756167042798,-200.0,0.00018792,2]
[381376418,1756167042809,-222.57837522,0.00018796,2]
[381376419,1756167042819,-500.0,0.00018796,2]
[381376420,1756167042830,-150.0,0.00018796,2]
[381376421,1756167042840,-5383.99777001,0.00018799,2]
[381376422,1756167042850,-1600.0,0.000188,6]
[381376423,1756167042860,-200.0,0.00018808,2]
[381376424,1756167042870,-6362.42655107,0.00018819,2]
[381376425,1756167042881,-150.0,0.0001882,2]
[381376426,1756167042891,-150.0,0.0001882,2]
[381376427,1756167042901,-719.0,0.0001882,2]
[381376428,1756167043024,-500.0,0.0001882,2]
[381376429,1756167043034,-200.0,0.00018823,2]
[381376430,1756167043043,-150.0,0.00018831,2]
[381376431,1756167043052,-1400.0,0.00018831,2]
[381376432,1756167043062,-500.0,0.00018831,2]
[381376433,1756167043071,-1083.0,0.00018831,2]
[381376434,1756167043081,-150.0,0.00018831,2]
[381376435,1756167043090,-5383.99777001,0.00018836,2]
[381376436,1756167043099,-200.0,0.00018839,2]
[381376437,1756167043110,-500.0,0.00018841,2]
[381376438,1756167043120,-2888.0070779,0.00018846,2]
[381376439,1756167043130,-1029.4317058,0.00018851,5]
[381376440,1756167043140,-26922.5956468,0.00018852,2]
[381376441,1756167043150,-182.8165682,0.00018852,2]
[381376442,1756167043159,-397.87489445,0.00018858,2]
[381376443,1756167043169,-612.7,0.00018859,2]
[381376444,1756167043180,-29706.69009738,0.0001886,2]
[381376446,1756167043190,-535.14236236,0.00018863,2]
[381376448,1756167043200,-168.0,0.00018863,2]
[381376450,1756167043209,-160518.53364208,0.00018864,2]
[381376452,1756167043219,-183.49290046,0.00018874,6]
[381376454,1756167043228,-500.0,0.00018874,6]
[381376456,1756167043237,-500.0,0.00018874,6]
[381376458,1756167043246,-500.0,0.00018874,6]
[381376460,1756167043256,-500.0,0.00018874,6]
[381376462,1756167043265,-5383.99777001,0.00018874,2]
[381376464,1756167043275,-212.1464853,0.00018876,2]
[381376466,1756167043284,-458.69889469,0.00018876,2]
[381376468,1756167043293,-168.0,0.00018876,2]
[381376470,1756167043302,-263.98985254,0.00018878,2]
[381376472,1756167043312,-160518.53364208,0.00018878,2]
[381376474,1756167043321,-7591.92,0.0001888,2]
[381376476,1756167043330,-168.0,0.00018888,2]
[381376478,1756167043339,-160.3343392,0.00018892,2]
[381376480,1756167043349,-160.33433918,0.00018894,2]
[381376482,1756167043358,-5000.0,0.00018894,2]
[381376484,1756167043367,-161.45946143,0.00018895,2]
[381376485,1756167043376,-841.93245993,0.00018895,2]
[381376487,1756167043386,-306.64548102,0.00018895,2]
[381376489,1756167043395,-1001.66227919,0.00018895,2]
[381376491,1756167043404,-160.33433918,0.00018895,2]
[381376494,1756167043414,-872.15929234,0.000189,3]
[381376496,1756167043428,-300.0,0.000189,6]
[381376497,1756167043439,-501.84629966,0.000189,3]
[381376500,1756167043448,-7591.92,0.000189,2]
[381376502,1756167043458,-213.74369363,0.000189,2]
[381376503,1756167043467,-2996.75515312,0.000189,2]
[381376505,1756167043476,-160518.53364208,0.00018901,2]
[381376507,1756167043485,-160518.53364208,0.00018903,2]
[381376509,1756167043495,-173.76,0.00018904,2]
[381376511,1756167043504,-150.0,0.00018904,2]
[381376513,1756167043515,-300.0,0.00018904,2]
[381376515,1756167043524,-6362.42655107,0.00018905,2]
[381376517,1756167043534,-84881.02504263,0.00018906,2]
[381376520,1756167043547,-9441.0163848,0.00018906,2]
[381376568,1756167045122,-169.85269845,0.00017701,2]
[381376569,1756167045132,-1173.0,0.00018196,2]
[381376570,1756167045141,-165.18697004,0.00018389,2]
[381376571,1756167045152,-55651.81488279,0.00018906,2]
[381376572,1756167045250,-285.06559965,0.00018906,2]
[381376573,1756167045261,-4742.05090909,0.00018906,2]
[381376574,1756167045273,-5517.56082312,0.00018906,2]
[381376575,1756167045283,-5383.99777001,0.00018912,2]
[381376576,1756167045292,-7577.042,0.00018916,2]
[381376577,1756167045303,-535.14236236,0.00018921,2]
[381376578,1756167045312,-44196.14518775,0.00018926,2]
[381376582,1756167046883,-616.43846056,0.00018752,2]
[381376583,1756167046892,-4833.77464944,0.00018926,2]
[381376584,1756167046936,-800.0,0.00018926,2]
[381376585,1756167047215,-676.41446788,0.00018926,2]
[381376586,1756167113598,173.05,0.00021945,30]
[381376588,1756167242829,400.0,0.00028,120]
[381376589,1756167275321,2772.0,0.00028,120]
[381376590,1756167575427,10695.2,0.00023,30]
[381376591,1756167680205,-531.51,0.00013699,2]
[381376609,1756168074316,1009.80040918,0.00013,15]
[381376610,1756168135592,-491.49,0.00012,2]
[381376611,1756168137713,-152.65301357,0.00012,2]
[381376612,1756168141459,-297.00207049,0.00012,2]
[381376613,1756168146325,-152.0,0.00012,2]
[381376614,1756168149353,-1406.33,0.00012,2]
[381376615,1756168151454,-203.86,0.00012,2]
[381376616,1756168153078,-266.53,0.00012,2]
[381376617,1756168203863,173.05,0.00021945,30]
[381376632,1756168232166,-656.0,0.00011999,2]
[381376633,1756168232176,-300.0,0.00011999,2]
[381376634,1756168232185,-307.98062728,0.00011999,2]
[381376635,1756168232197,-228.08317565,0.00011999,2]
[381376636,1756168232207,-6664.86179582,0.00012,2]
[381376637,1756168232217,-6137.76604845,0.00012,2]
[381376638,1756168232292,-1928.6556657,0.00012,2]
[381376639,1756168232303,-344.89736487,0.00012,2]
[381376641,1756168232346,-1425.0240456,0.00012,2]
[381376642,1756168232356,-2383.5820001,0.00012,2]
[381376643,1756168232367,-4440.92812,0.00012,2]
[381376664,1756168237762,-1000.0,0.00012,2]
[381376670,1756168237825,-1916.15866498,0.00012,2]
[381376673,1756168237883,-1429.03215924,0.00012,2]
[381376679,1756168237946,-5747.38811478,0.00012,2]
[381376685,1756168238006,-16438.21253877,0.00012,2]
[381376687,1756168238019,-1239.23805153,0.00012,2]
[381376688,1756168238031,-5549.14004181,0.00012,2]
[381376689,1756168238077,-357.43554582,0.00012,2]
[381376781,1756168239836,-1703.59881235,0.00012,2]
[381376782,1756168239847,-1232.19,0.00012,2]
[381376783,1756168239885,-66420.2205839,0.00012,2]
[381376784,1756168239898,-941.68,0.00012,2]
[381376785,1756168239909,-4289.61028403,0.00012,2]
[381376786,1756168239920,-2114.48594429,0.00012,2]
[381376787,1756168239932,-18276.90017619,0.00012,2]
[381376788,1756168240090,-0.01457263,0.00012,2]
[381376789,1756168240102,-3009.78066706,0.00012,2]
[381376790,1756168240145,-1007.65390319,0.00012,2]
[381376791,1756168240177,-346.94941179,0.00012,2]
[381376799,1756168242921,-9560.84649377,0.00012,2]
[381376800,1756168242932,-152.0,0.000132,2]
[381376801,1756168242942,-1523.0,0.00014156,2]
[381376802,1756168242953,-1908.72796533,0.000149,2]
[381376803,1756168242962,-10322.1139409,0.00015,2]
[381376804,1756168243319,-966.18,0.00015,2]
[381376879,1756168246624,-7307.89166148,0.00015,2]
[381376880,1756168246634,-1908.72796532,0.00015344,2]
[381376881,1756168246644,-1908.72796532,0.00015789,2]
[381376882,1756168246656,-1908.72796532,0.00016233,2]
[381376883,1756168246665,-1908.72796532,0.00016678,2]
[381376884,1756168246674,-1908.72796532,0.00017122,2]
[381376885,1756168246683,-160.0,0.00017317,7]
[381376886,1756168246692,-1908.72796532,0.00017567,2]
[381376887,1756168246701,-212.1464853,0.00017709,2]
[381376888,1756168246712,-458.69889469,0.00017709,2]
[381376889,1756168246722,-844.49479001,0.00017748,2]
[381376890,1756168246731,-1000.0,0.0001776,2]
[381376891,1756168246740,-313.54265877,0.00018,2]
[381376892,1756168246749,-5000.0,0.00018,2]
[381376893,1756168246758,-385.0,0.00018,2]
[381376894,1756168246768,-1908.72796532,0.00018011,2]
[381376895,1756168246777,-200.0,0.00018086,2]
[381376896,1756168246786,-200.0,0.000183,6]
[381376897,1756168246796,-1007.59943417,0.00018358,2]
[381376898,1756168246807,-150.0,0.000184,2]
[381376899,1756168246819,-1208.29,0.000184,2]
[381376900,1756168246828,-150.0,0.000184,2]
[381376901,1756168246838,-347.52,0.000184,2]
[381376902,1756168246849,-1001.5267987,0.000184,2]
[381376903,1756168246860,-1799.48,0.000184,2]
[381376904,1756168246870,-1079.36,0.000184,2]
[381376905,1756168246880,-1079.36,0.000184,2]
[381376906,1756168246890,-799.46,0.000184,2]
[381376907,1756168246903,-937.61,0.000184,2]
[381376908,1756168246912,-500.0,0.000184,6]
[381376909,1756168246921,-1908.72796532,0.00018456,2]
[381376910,1756168246931,-1000.0,0.00018457,2]
[381376911,1756168246940,-1246.91,0.000185,2]
[381376912,1756168246949,-1598.92,0.000185,2]
[381376913,1756168246959,-539.68,0.000185,2]
[381376914,1756168246970,-408.59,0.000185,2]
[381376915,1756168246981,-408.59,0.000185,2]
[381376916,1756168246991,-800.0,0.000185,6]
[381376917,1756168247001,-267.46074303,0.00018545,2]
[381376918,1756168247012,-2524.82941417,0.00018545,2]
[381376919,1756168247023,-151.0,0.00018545,2]
[381376920,1756168247032,-267.77,0.00018546,2]
[381376921,1756168247042,-150.0,0.00018555,2]
[381376922,1756168247051,-956.72,0.00018555,2]
[381376923,1756168247061,-400.0,0.00018555,2]
[381376924,1756168247070,-400.0,0.00018555,2]
[381376925,1756168247080,-400.0,0.00018555,2]
[381376926,1756168247089,-295.55257555,0.00018555,2]
[381376927,1756168247200,-720.45945657,0.00018555,2]
[381376928,1756168247217,-264.52796788,0.00018555,2]
[381376929,1756168247227,-755.98,0.00018555,2]
[381376930,1756168247239,-500.0,0.00018555,2]
[381376931,1756168247714,-842.34,0.00018555,2]
[381376932,1756168247728,-400.0,0.00018555,2]
[381376933,1756168247737,-108.12250693,0.00018555,2]
[381376934,1756168247774,-291.87749307,0.00018555,2]
[381376935,1756168247784,-400.0,0.00018555,2]
[381376936,1756168247793,-400.0,0.00018555,2]
[381376937,1756168247803,-43.49751193,0.00018555,2]
[381376938,1756168247814,-251.21308524,0.00018555,2]
[381376939,1756168247825,-260.63,0.00018555,2]
[381376951,1756169383390,1000.0,0.0002876,120]
[381376952,1756169389743,785.0,0.0002876,120]
[381376973,1756169432499,-523.38584556,0.00013699,2]
[381376974,1756169432511,-5.07415444,0.00013699,2]
[381376975,1756169432520,-152.0,0.00014794,2]
[381376976,1756169432529,-5000.0,0.00015,2]
[381376977,1756169432539,-188.34785305,0.00015729,2]
[381376978,1756169432549,-250.0,0.00015829,2]
[381376979,1756169432557,-300.0,0.00015999,2]
[381376981,1756169432566,-786.33636355,0.00015999,2]
[381376983,1756169432578,-413.66363645,0.00015999,2]
[381376985,1756169432587,-2487.66945846,0.00016,2]
[381376987,1756169432598,-1642.641,0.00016,2]
[381376989,1756169432609,-869.68954154,0.00016,2]
[381376991,1756169432619,-6.26998154,0.00016682,2]
[381377003,1756169432729,-793.19001846,0.00016682,2]
[381377004,1756169432738,-497.24923595,0.00016722,2]
[381377005,1756169432747,-181.0,0.00016722,2]
[381377007,1756169432757,-5000.0,0.00017,2]
[381377009,1756169432766,-500.0,0.00017107,2]
[381377011,1756169432775,-500.0,0.00017107,2]
[381377013,1756169432785,-375.80685743,0.00017107,2]
[381377015,1756169432795,-250.0,0.00017208,2]
[381377017,1756169432804,-1130.1,0.00017295,2]
[381377019,1756169432814,-1000.0,0.00017321,2]
[381377021,1756169432833,-346.76,0.00017378,2]
[381377022,1756169432846,-568.08140459,0.00017388,2]
[381377023,1756169432859,-457.90840285,0.00017388,2]
[381377024,1756169432870,-103.01019256,0.00017388,2]
[381377025,1756169432880,-454.0,0.00017389,2]
[381377026,1756169432891,-344.09155387,0.00017389,2]
[381377027,1756169436279,-150.0,0.00014199,3]
[381377028,1756169436293,-115.629,0.00016439,3]
[381377029,1756169436385,-184.371,0.00016439,3]
[381377030,1756169436395,-333.90844613,0.00017389,2]
[381377031,1756169436407,-666.0,0.00017394,2]
[381377032,1756169436417,-328.0,0.0001742,2]
[381377033,1756169436427,-609.0,0.0001742,2]
[381377034,1756169436436,-160.0,0.00017433,7]
[381377035,1756169436447,-968.0,0.00017506,2]
[381377036,1756169436456,-481.26104523,0.00017641,2]
[381377037,1756169436545,-150.0,0.00014699,3]
[381377039,1756169436554,-318.19895477,0.00017641,2]
[381377041,1756169436563,-212.1464853,0.00017667,2]
[381377043,1756169436573,-458.69889469,0.00017667,2]
[381377045,1756169436582,-844.49479001,0.00017667,2]
[381377047,1756169436592,-150.0,0.00017709,2]
[381377049,1756169436601,-150.0,0.0001789,2]
[381377050,1756169436611,-377.0,0.000179,2]
[381377052,1756169436620,-188.34785304,0.000179,2]
[381377054,1756169436629,-168.0,0.00017906,2]
[381377056,1756169436638,-500.0,0.00017989,2]
[381377058,1756169436648,-500.0,0.00017989,2]
[381377060,1756169436660,-290.76132855,0.00017989,2]
[381377062,1756169436670,-151.0,0.00017989,2]
[381377064,1756169436679,-151.0,0.00017989,2]
[381377066,1756169436690,-151.0,0.00017989,2]
[381377067,1756169436699,-151.0,0.00017989,2]
[381377068,1756169436708,-151.0,0.00017989,2]
[381377069,1756169436717,-151.0,0.00017989,2]
[381377070,1756169436727,-151.0,0.00017989,2]
[381377071,1756169436736,-151.0,0.00017989,2]
[381377072,1756169436745,-151.0,0.00017989,2]
[381377073,1756169436756,-151.0,0.00017989,2]
[381377074,1756169436765,-151.0,0.00017989,2]
[381377075,1756169436774,-151.0,0.00017989,2]
[381377076,1756169436783,-151.0,0.00017989,2]
[381377077,1756169436792,-200.0,0.00017989,2]
[381377078,1756169436801,-500.0,0.00017989,2]
[381377079,1756169436810,-500.0,0.00017989,2]
[381377080,1756169436820,-190.10479364,0.00017989,2]
[381377081,1756169436832,-309.89520636,0.00017989,2]
[381377082,1756169436841,-238.15229364,0.00017989,2]
[381377083,1756169436853,-261.84770636,0.00017989,2]
[381377084,1756169436862,-483.98196015,0.00017989,2]
[381377112,1756169438035,-300.0,0.00016939,3]
[381377113,1756169438044,-16.01803985,0.00017989,2]
[381377114,1756169438054,-500.0,0.00017989,2]
[381377115,1756169438063,-281.40301357,0.0001799,2]
[381377116,1756169438073,-4.17944658,0.00018,2]
[381377117,1756169438108,-2686.65726764,0.00018,2]
[381377118,1756169438120,-570.075,0.00018,2]
[381377119,1756169438131,-1739.08828578,0.00018,2]
[381377120,1756169438141,-4924.91171422,0.00018,2]
[381377121,1756169438189,-75.08828578,0.00018,2]
[381377122,1756169438199,-1114.41171422,0.00018,2]
[381377123,1756169438245,-885.58828578,0.00018,2]
[381377124,1756169438255,-2000.0,0.00018,2]
[381377125,1756169438264,-1468.76171422,0.00018,2]
[381377126,1756169438277,-531.23828578,0.00018,2]
[381377127,1756169438288,-1122.23431242,0.00018,2]
[381377128,1756169438300,-942.76568758,0.00018,2]
[381377129,1756169438309,-642.19343714,0.00018,2]
[381377130,1756169438321,-1181.80656286,0.00018,2]
[381377131,1756169438331,-200.0,0.00018,2]
[381377132,1756169438340,-151.0,0.0001801,2]
[381377133,1756169438350,-151.0,0.0001801,2]
[381377134,1756169438362,-279.5021044,0.0001801,2]
[381377135,1756169438372,-267.46074303,0.0001801,2]
[381377136,1756169438383,-764.38288249,0.0001801,2]
[381377137,1756169438393,-151.0,0.0001801,2]
[381377138,1756169438405,-1000.0,0.0001801,2]
[381377140,1756169438414,-1.8315043,0.0001801,2]
[381377145,1756169438461,-150.0,0.00017439,3]
[381377148,1756169438471,-901.97674804,0.0001801,2]
[381377154,1756169438514,-96.19174766,0.0001801,2]
[381377156,1756169438523,-441.82794017,0.0001801,2]
[381377312,1756169440227,-558.17205983,0.0001801,2]
[381377314,1756169440238,-322.6107,0.0001801,2]
[381377316,1756169440247,-844.76085339,0.0001801,2]
[381377318,1756169440256,-2524.82941417,0.0001801,2]
[381377320,1756169440266,-695.39793187,0.0001801,2]
[381377322,1756169440280,-1000.0,0.0001801,2]
[381377324,1756169440293,-1000.0,0.0001801,2]
[381377326,1756169440302,-1000.0,0.0001801,2]
[381377328,1756169440312,-1000.0,0.0001801,2]
[381377330,1756169440323,-1000.0,0.0001801,2]
[381377332,1756169440332,-1000.0,0.0001801,2]
[381377334,1756169440341,-957.00474134,0.0001801,2]
[381377338,1756169440368,-42.99525866,0.0001801,2]
[381377340,1756169440377,-697.4274602,0.0001801,2]
[381377342,1756169440389,-302.5725398,0.0001801,2]
[381377344,1756169440398,-48.96517008,0.0001801,2]
[381377346,1756169440411,-311.98467846,0.0001801,2]
[381377348,1756169440423,-313.63581535,0.0001801,2]
[381377351,1756169440438,-325.41433611,0.0001801,2]
[381377353,1756169440448,-1000.0,0.0001801,2]
[381377355,1756169440457,-151.0,0.0001801,2]
[381377356,1756169440467,-1286.34997476,0.00018065,2]
[381377361,1756169440505,-1331.89812774,0.00018065,2]
[381377363,1756169440516,-166.1,0.0001808,2]
[381377365,1756169440526,-150.0,0.00018082,2]
[381377368,1756169440535,-173.76,0.0001812,2]
[381377370,1756169440545,-232.76889582,0.0001812,2]
[381377375,1756169440576,-2482.35438647,0.0001812,2]
[381377377,1756169440585,-1881.92433828,0.00018175,2]
[381377379,1756169440597,-933.65850546,0.00018175,2]
[381377382,1756169440606,-2919.75940895,0.0001823,2]
[381377385,1756169440616,-868.33675522,0.00018263,2]
[381377387,1756169440625,-3027.79050709,0.00018285,2]
[381377389,1756169440634,-400.0,0.000183,6]